[Event "Titled Tuesday Blitz June 20 Early 2023"]
[White "Cueto, Jonny"]
[Black "Zilleruelo Irizarry, Diego"]
[WhiteFideId "3300145"]
[BlackFideId "3101460"]
[WhiteElo "2240"]
[BlackElo "2009"]
[Result "1-0"]
[Round "5"]
[TimeControl "180+2"]
[Date "2023.06.20"]
[WhiteClock "0:01:36"]
[BlackClock "0:00:57"]
[Board "186"]

1. d4 {[%clk 0:03:00]}  d5 {[%clk 0:02:30]} 2. Bf4 {[%clk 0:03:00]}  c5 {[%clk 0:02:29]} 3. e3 {[%clk 0:02:58]}  Qb6 {[%clk 0:02:27]} 4. Nc3 {[%clk 0:02:57]}  Nf6 {[%clk 0:02:25]} 5. Nf3 {[%clk 0:02:50]}  Bf5 {[%clk 0:02:18]} 6. Nh4 {[%clk 0:02:33]}  Bd7 {[%clk 0:02:10]} 7. Be2 {[%clk 0:02:28]}  e6 {[%clk 0:02:09]} 8. O-O {[%clk 0:02:20]}  cxd4 {[%clk 0:02:09]} 9. exd4 {[%clk 0:02:19]}  Be7 {[%clk 0:02:09]} 10. Rb1 {[%clk 0:02:15]}  O-O {[%clk 0:02:08]} 11. Nf3 {[%clk 0:02:13]}  Nc6 {[%clk 0:02:06]} 12. Re1 {[%clk 0:02:13]}  Rac8 {[%clk 0:01:28]} 13. a3 {[%clk 0:02:13]}  Na5 {[%clk 0:01:24]} 14. Ne5 {[%clk 0:02:10]}  Nc4 {[%clk 0:01:24]} 15. Bxc4 {[%clk 0:01:57]}  dxc4 {[%clk 0:01:25]} 16. Bg5 {[%clk 0:01:57]}  Rfd8 {[%clk 0:01:23]} 17. Qe2 {[%clk 0:01:48]}  Qxd4 {[%clk 0:01:06]} 18. Rbd1 {[%clk 0:01:39]}  Qc5 {[%clk 0:01:01]} 19. Bxf6 {[%clk 0:01:37]}  Bxf6 {[%clk 0:00:59]} 20. Nxd7 {[%clk 0:01:37]}  Rxd7 {[%clk 0:00:58]} 21. Rxd7 {[%clk 0:01:37]}  Bxc3 {[%clk 0:00:57]} 22. bxc3 {[%clk 0:01:36]} 1-0


[Site "https://www.chess.com"]

[Event "Titled Tuesday Blitz June 20 Early 2023"]
[White "Slavin, Alexey"]
[Black "Nikulina, Alena"]
[WhiteFideId "24104388"]
[BlackFideId "4172051"]
[WhiteElo "2264"]
[BlackElo "1608"]
[Result "1-0"]
[Round "5"]
[TimeControl "180+2"]
[Date "2023.06.20"]
[WhiteClock "0:00:31"]
[BlackClock "0:00:10"]
[Board "187"]

1. e4 {[%clk 0:02:59]}  e5 {[%clk 0:02:57]} 2. Nf3 {[%clk 0:02:59]}  d5 {[%clk 0:02:57]} 3. Nc3 {[%clk 0:02:58]}  d4 {[%clk 0:02:50]} 4. Ne2 {[%clk 0:02:58]}  Nc6 {[%clk 0:02:40]} 5. Ng3 {[%clk 0:02:58]}  Nf6 {[%clk 0:02:37]} 6. Bc4 {[%clk 0:02:58]}  Be7 {[%clk 0:02:35]} 7. d3 {[%clk 0:02:57]}  a6 {[%clk 0:02:34]} 8. a3 {[%clk 0:02:57]}  b5 {[%clk 0:02:34]} 9. Ba2 {[%clk 0:02:56]}  O-O {[%clk 0:02:25]} 10. O-O {[%clk 0:02:56]}  a5 {[%clk 0:02:18]} 11. Qe2 {[%clk 0:02:47]}  b4 {[%clk 0:02:18]} 12. Nh4 {[%clk 0:02:45]}  g6 {[%clk 0:02:14]} 13. Bh6 {[%clk 0:02:42]}  Re8 {[%clk 0:02:14]} 14. Nf3 {[%clk 0:02:36]}  Bf8 {[%clk 0:02:09]} 15. Bd2 {[%clk 0:02:29]}  Be6 {[%clk 0:02:00]} 16. Bxe6 {[%clk 0:02:24]}  Rxe6 {[%clk 0:01:59]} 17. Ng5 {[%clk 0:02:17]}  Re8 {[%clk 0:01:55]} 18. f4 {[%clk 0:02:16]}  bxa3 {[%clk 0:01:42]} 19. bxa3 {[%clk 0:02:14]}  h6 {[%clk 0:01:32]} 20. fxe5 {[%clk 0:02:10]}  Nxe5 {[%clk 0:01:30]} 21. Nh3 {[%clk 0:01:43]}  Bg7 {[%clk 0:01:20]} 22. Nf4 {[%clk 0:01:29]}  a4 {[%clk 0:01:14]} 23. h3 {[%clk 0:01:28]}  c5 {[%clk 0:01:08]} 24. Rab1 {[%clk 0:01:23]}  Rb8 {[%clk 0:01:07]} 25. Qf2 {[%clk 0:00:53]}  Qc7 {[%clk 0:00:48]} 26. Nd5 {[%clk 0:00:48]}  Nxd5 {[%clk 0:00:46]} 27. exd5 {[%clk 0:00:49]}  Rxb1 {[%clk 0:00:43]} 28. Rxb1 {[%clk 0:00:48]}  Qd6 {[%clk 0:00:34]} 29. Ne4 {[%clk 0:00:48]}  Qxd5 {[%clk 0:00:32]} 30. Bxh6 {[%clk 0:00:49]}  Qa2 {[%clk 0:00:28]} 31. Nf6+ {[%clk 0:00:36]}  Kf8 {[%clk 0:00:17]} 32. Bxg7+ {[%clk 0:00:34]}  Kxg7 {[%clk 0:00:16]} 33. Nxe8+ {[%clk 0:00:35]}  Kf8 {[%clk 0:00:16]} 34. Rb8 {[%clk 0:00:35]}  Qa1+ {[%clk 0:00:12]} 35. Kh2 {[%clk 0:00:33]}  Ke7 {[%clk 0:00:12]} 36. Qf6+ {[%clk 0:00:32]}  Kd7 {[%clk 0:00:10]} 37. Qxe5 {[%clk 0:00:31]} 1-0


[Site "https://www.chess.com"]

[Event "Titled Tuesday Blitz June 20 Early 2023"]
[White "Vargas Rodriguez, Wilver"]
[Black "Silva Lucena, Cristian"]
[WhiteFideId "3509672"]
[BlackFideId "2232588"]
[WhiteElo "2245"]
[BlackElo "2223"]
[Result "1/2-1/2"]
[Round "5"]
[TimeControl "180+2"]
[Date "2023.06.20"]
[WhiteClock "0:00:04"]
[BlackClock "0:01:23"]
[Board "188"]

1. Nf3 {[%clk 0:03:00]}  e6 {[%clk 0:02:58]} 2. e4 {[%clk 0:02:51]}  d5 {[%clk 0:02:57]} 3. exd5 {[%clk 0:02:52]}  exd5 {[%clk 0:02:56]} 4. d4 {[%clk 0:02:52]}  Bd6 {[%clk 0:02:57]} 5. Bd3 {[%clk 0:02:52]}  Ne7 {[%clk 0:02:57]} 6. O-O {[%clk 0:02:52]}  c6 {[%clk 0:02:56]} 7. Re1 {[%clk 0:02:52]}  O-O {[%clk 0:02:55]} 8. c3 {[%clk 0:02:47]}  Bg4 {[%clk 0:02:54]} 9. Bg5 {[%clk 0:02:43]}  Qd7 {[%clk 0:02:51]} 10. Nbd2 {[%clk 0:02:41]}  f6 {[%clk 0:02:49]} 11. Bh4 {[%clk 0:02:37]}  Bf5 {[%clk 0:02:50]} 12. Nf1 {[%clk 0:02:28]}  Bxd3 {[%clk 0:02:48]} 13. Qxd3 {[%clk 0:02:29]}  a5 {[%clk 0:02:47]} 14. Bg3 {[%clk 0:02:27]}  Nf5 {[%clk 0:02:43]} 15. Bxd6 {[%clk 0:02:24]}  Nxd6 {[%clk 0:02:44]} 16. Re2 {[%clk 0:02:10]}  a4 {[%clk 0:02:44]} 17. a3 {[%clk 0:02:10]}  Na6 {[%clk 0:02:40]} 18. Rae1 {[%clk 0:02:07]}  Rae8 {[%clk 0:02:40]} 19. Rxe8 {[%clk 0:02:05]}  Rxe8 {[%clk 0:02:41]} 20. Rxe8+ {[%clk 0:01:59]}  Qxe8 {[%clk 0:02:42]} 21. Ne3 {[%clk 0:01:58]}  b5 {[%clk 0:02:39]} 22. g3 {[%clk 0:01:52]}  Nb8 {[%clk 0:02:34]} 23. Nd2 {[%clk 0:01:22]}  Nd7 {[%clk 0:02:28]} 24. f3 {[%clk 0:01:21]}  Nb6 {[%clk 0:02:28]} 25. Kf2 {[%clk 0:01:20]}  g6 {[%clk 0:02:24]} 26. Ng4 {[%clk 0:01:15]}  Kg7 {[%clk 0:02:21]} 27. Qe3 {[%clk 0:01:09]}  Qxe3+ {[%clk 0:02:20]} 28. Nxe3 {[%clk 0:01:10]}  h5 {[%clk 0:02:20]} 29. h3 {[%clk 0:01:09]}  Kf7 {[%clk 0:02:18]} 30. Ke2 {[%clk 0:01:09]}  Ke6 {[%clk 0:02:18]} 31. Kd3 {[%clk 0:01:09]}  f5 {[%clk 0:02:16]} 32. h4 {[%clk 0:01:06]}  f4 {[%clk 0:02:12]} 33. gxf4 {[%clk 0:01:02]}  Nf5 {[%clk 0:02:12]} 34. Ng2 {[%clk 0:01:01]}  Ng3 {[%clk 0:02:07]} 35. Kc2 {[%clk 0:00:42]}  Kf5 {[%clk 0:02:05]} 36. Kd3 {[%clk 0:00:42]}  Kf6 {[%clk 0:02:03]} 37. Ne3 {[%clk 0:00:27]}  Nf5 {[%clk 0:02:01]} 38. Ng2 {[%clk 0:00:26]}  Nc8 {[%clk 0:02:01]} 39. b3 {[%clk 0:00:25]}  axb3 {[%clk 0:01:59]} 40. Nxb3 {[%clk 0:00:26]}  Ncd6 {[%clk 0:02:00]} 41. Na5 {[%clk 0:00:24]}  Nc4 {[%clk 0:01:56]} 42. Nxc6 {[%clk 0:00:15]}  Nxa3 {[%clk 0:01:55]} 43. Nb4 {[%clk 0:00:14]}  Ke6 {[%clk 0:01:54]} 44. Ke2 {[%clk 0:00:09]}  Nb1 {[%clk 0:01:51]} 45. Kd3 {[%clk 0:00:09]}  Kd6 {[%clk 0:01:47]} 46. Nc2 {[%clk 0:00:09]}  Ke6 {[%clk 0:01:40]} 47. Nb4 {[%clk 0:00:08]}  Na3 {[%clk 0:01:40]} 48. Nc2 {[%clk 0:00:08]}  Nc4 {[%clk 0:01:40]} 49. Nb4 {[%clk 0:00:07]}  Kd6 {[%clk 0:01:40]} 50. Nc2 {[%clk 0:00:07]}  Nb2+ {[%clk 0:01:39]} 51. Kd2 {[%clk 0:00:08]}  Kc6 {[%clk 0:01:35]} 52. Nb4+ {[%clk 0:00:08]}  Kd6 {[%clk 0:01:35]} 53. Kc2 {[%clk 0:00:07]}  Nc4 {[%clk 0:01:35]} 54. Kd3 {[%clk 0:00:07]}  Nb2+ {[%clk 0:01:31]} 55. Kc2 {[%clk 0:00:07]}  Na4 {[%clk 0:01:32]} 56. Kd3 {[%clk 0:00:07]}  Nb6 {[%clk 0:01:32]} 57. Nc2 {[%clk 0:00:06]}  Nc4 {[%clk 0:01:29]} 58. Nb4 {[%clk 0:00:07]}  Ng7 {[%clk 0:01:29]} 59. Kc2 {[%clk 0:00:06]}  Ne6 {[%clk 0:01:29]} 60. Kd3 {[%clk 0:00:07]}  Nb6 {[%clk 0:01:26]} 61. Kc2 {[%clk 0:00:06]}  Nc8 {[%clk 0:01:26]} 62. Kd3 {[%clk 0:00:06]}  Ne7 {[%clk 0:01:26]} 63. Kc2 {[%clk 0:00:06]}  Nf5 {[%clk 0:01:27]} 64. Kd3 {[%clk 0:00:05]}  Ng3 {[%clk 0:01:26]} 65. Kd2 {[%clk 0:00:05]}  Nf1+ {[%clk 0:01:26]} 66. Ke2 {[%clk 0:00:04]}  Ng3+ {[%clk 0:01:26]} 67. Ke3 {[%clk 0:00:04]}  Nf5+ {[%clk 0:01:26]} 68. Kd3 {[%clk 0:00:04]}  Nc7 {[%clk 0:01:26]} 69. Nc2 {[%clk 0:00:03]}  Na8 {[%clk 0:01:25]} 70. Nb4 {[%clk 0:00:03]}  Nb6 {[%clk 0:01:24]} 71. Kd2 {[%clk 0:00:04]}  Nc4+ {[%clk 0:01:23]} 72. Kd3 {[%clk 0:00:04]} 1/2-1/2


[Site "https://www.chess.com"]

[Event "Titled Tuesday Blitz June 20 Early 2023"]
[White "Winkels, Marcel"]
[Black "Zia, Tahsin Tajwar"]
[WhiteFideId "1003887"]
[BlackFideId "10211888"]
[WhiteElo "1900"]
[BlackElo "2062"]
[Result "0-1"]
[Round "5"]
[TimeControl "180+2"]
[Date "2023.06.20"]
[WhiteClock "0:00:00"]
[BlackClock "0:00:38"]
[Board "190"]

1. e4 {[%clk 0:02:58]}  c6 {[%clk 0:02:58]} 2. d4 {[%clk 0:02:53]}  d5 {[%clk 0:02:58]} 3. e5 {[%clk 0:02:53]}  a6 {[%clk 0:02:58]} 4. c4 {[%clk 0:02:51]}  dxc4 {[%clk 0:02:56]} 5. Bxc4 {[%clk 0:02:50]}  b5 {[%clk 0:02:55]} 6. Bb3 {[%clk 0:02:50]}  e6 {[%clk 0:02:53]} 7. Nf3 {[%clk 0:02:48]}  Bb7 {[%clk 0:02:52]} 8. O-O {[%clk 0:02:47]}  Nd7 {[%clk 0:02:50]} 9. Nc3 {[%clk 0:02:45]}  Nb6 {[%clk 0:02:47]} 10. Bg5 {[%clk 0:02:33]}  Qd7 {[%clk 0:02:39]} 11. Ne4 {[%clk 0:02:27]}  h6 {[%clk 0:02:32]} 12. Be3 {[%clk 0:02:21]}  Nd5 {[%clk 0:02:32]} 13. Rc1 {[%clk 0:02:19]}  a5 {[%clk 0:02:24]} 14. a3 {[%clk 0:02:08]}  Be7 {[%clk 0:02:22]} 15. Nc5 {[%clk 0:02:07]}  Bxc5 {[%clk 0:02:18]} 16. Rxc5 {[%clk 0:01:53]}  Nge7 {[%clk 0:02:18]} 17. Nd2 {[%clk 0:01:44]}  Nf5 {[%clk 0:02:11]} 18. Qe2 {[%clk 0:01:37]}  O-O {[%clk 0:02:00]} 19. Ne4 {[%clk 0:01:35]}  b4 {[%clk 0:01:56]} 20. Bc4 {[%clk 0:01:13]}  bxa3 {[%clk 0:01:32]} 21. bxa3 {[%clk 0:01:11]}  Kh8 {[%clk 0:01:22]} 22. Rb1 {[%clk 0:01:07]}  Rfb8 {[%clk 0:01:16]} 23. Qe1 {[%clk 0:00:57]}  Bc8 {[%clk 0:01:11]} 24. Bf1 {[%clk 0:00:44]}  Rxb1 {[%clk 0:01:00]} 25. Qxb1 {[%clk 0:00:43]}  Qa7 {[%clk 0:01:01]} 26. Rc2 {[%clk 0:00:36]}  Ba6 {[%clk 0:00:59]} 27. Rxc6 {[%clk 0:00:24]}  Bxf1 {[%clk 0:00:59]} 28. Qxf1 {[%clk 0:00:15]}  Ndxe3 {[%clk 0:00:56]} 29. fxe3 {[%clk 0:00:15]}  Nxe3 {[%clk 0:00:57]} 30. Qa1 {[%clk 0:00:06]}  Rb8 {[%clk 0:00:46]} 31. h3 {[%clk 0:00:00]}  Qb7 {[%clk 0:00:38]} 0-1


[Site "https://www.chess.com"]

[Event "Titled Tuesday Blitz June 20 Early 2023"]
[White "Baruch, Liam"]
[Black "TomLiu777"]
[WhiteFideId "14322064"]
[WhiteElo "2118"]
[BlackElo "2378"]
[Result "0-1"]
[Round "5"]
[TimeControl "180+2"]
[Date "2023.06.20"]
[WhiteClock "0:00:01"]
[BlackClock "0:00:52"]
[Board "191"]

1. e4 {[%clk 0:03:00]}  d6 {[%clk 0:02:58]} 2. d4 {[%clk 0:03:00]}  g6 {[%clk 0:02:59]} 3. Nc3 {[%clk 0:03:01]}  Bg7 {[%clk 0:03:00]} 4. Be3 {[%clk 0:03:01]}  Nf6 {[%clk 0:03:00]} 5. Qd2 {[%clk 0:03:02]}  Ng4 {[%clk 0:02:59]} 6. Bg5 {[%clk 0:03:02]}  h6 {[%clk 0:02:59]} 7. Bf4 {[%clk 0:03:01]}  e5 {[%clk 0:02:59]} 8. dxe5 {[%clk 0:02:59]}  dxe5 {[%clk 0:03:00]} 9. Qxd8+ {[%clk 0:02:59]}  Kxd8 {[%clk 0:03:00]} 10. O-O-O+ {[%clk 0:03:00]}  Nd7 {[%clk 0:02:57]} 11. Bg3 {[%clk 0:02:59]}  h5 {[%clk 0:02:49]} 12. h3 {[%clk 0:02:56]}  Nh6 {[%clk 0:02:47]} 13. Nf3 {[%clk 0:02:53]}  f6 {[%clk 0:02:45]} 14. Bc4 {[%clk 0:02:36]}  c6 {[%clk 0:02:44]} 15. Bb3 {[%clk 0:02:33]}  Ke7 {[%clk 0:02:41]} 16. Nh4 {[%clk 0:02:27]}  Nf8 {[%clk 0:02:42]} 17. Rd3 {[%clk 0:02:17]}  g5 {[%clk 0:02:38]} 18. Nf3 {[%clk 0:02:16]}  Nf7 {[%clk 0:02:34]} 19. Rhd1 {[%clk 0:02:12]}  Be6 {[%clk 0:02:35]} 20. Bxe6 {[%clk 0:02:10]}  Kxe6 {[%clk 0:02:36]} 21. h4 {[%clk 0:02:00]}  g4 {[%clk 0:02:34]} 22. Nd2 {[%clk 0:02:01]}  Ng6 {[%clk 0:02:34]} 23. Nc4 {[%clk 0:01:55]}  Bh6+ {[%clk 0:02:33]} 24. Kb1 {[%clk 0:01:55]}  Rhd8 {[%clk 0:02:33]} 25. Na5 {[%clk 0:01:47]}  Rxd3 {[%clk 0:02:29]} 26. Rxd3 {[%clk 0:01:47]}  Nd6 {[%clk 0:02:15]} 27. Na4 {[%clk 0:01:40]}  b6 {[%clk 0:02:05]} 28. Nxc6 {[%clk 0:01:39]}  Nxe4 {[%clk 0:02:02]} 29. Nc3 {[%clk 0:01:16]}  Nxc3+ {[%clk 0:01:42]} 30. Rxc3 {[%clk 0:01:14]}  f5 {[%clk 0:01:42]} 31. f3 {[%clk 0:01:10]}  Bd2 {[%clk 0:01:31]} 32. Rd3 {[%clk 0:01:06]}  Bf4 {[%clk 0:01:31]} 33. Be1 {[%clk 0:00:50]}  e4 {[%clk 0:01:15]} 34. fxe4 {[%clk 0:00:46]}  fxe4 {[%clk 0:01:16]} 35. Rd4 {[%clk 0:00:40]}  Kf5 {[%clk 0:01:12]} 36. Rd5+ {[%clk 0:00:37]}  Ne5 {[%clk 0:01:01]} 37. Nxe5 {[%clk 0:00:13]}  Bxe5 {[%clk 0:00:59]} 38. Bg3 {[%clk 0:00:13]}  Re8 {[%clk 0:00:58]} 39. Kc1 {[%clk 0:00:13]}  Kf6 {[%clk 0:00:55]} 40. Bxe5+ {[%clk 0:00:12]}  Rxe5 {[%clk 0:00:55]} 41. Rd6+ {[%clk 0:00:13]}  Kf5 {[%clk 0:00:54]} 42. Kd2 {[%clk 0:00:12]}  Kf4 {[%clk 0:00:54]} 43. Ke2 {[%clk 0:00:12]}  Kg3 {[%clk 0:00:53]} 44. Rd7 {[%clk 0:00:08]}  Kxg2 {[%clk 0:00:53]} 45. Rxa7 {[%clk 0:00:08]}  Kh2 {[%clk 0:00:53]} 46. a4 {[%clk 0:00:07]}  g3 {[%clk 0:00:52]} 47. b4 {[%clk 0:00:01]}  g2 {[%clk 0:00:52]} 0-1


[Site "https://www.chess.com"]

[Event "Titled Tuesday Blitz June 20 Early 2023"]
[White "Petrova, Irina"]
[Black "Blackwhite017"]
[WhiteFideId "14124122"]
[WhiteElo "2084"]
[BlackElo "2120"]
[Result "1-0"]
[Round "5"]
[TimeControl "180+2"]
[Date "2023.06.20"]
[WhiteClock "0:01:47"]
[BlackClock "0:01:09"]
[Board "193"]

1. e4 {[%clk 0:03:00]}  c5 {[%clk 0:02:59]} 2. Nf3 {[%clk 0:02:59]}  d6 {[%clk 0:02:59]} 3. Bb5+ {[%clk 0:03:00]}  Nd7 {[%clk 0:02:58]} 4. O-O {[%clk 0:02:59]}  g6 {[%clk 0:02:55]} 5. d4 {[%clk 0:02:57]}  cxd4 {[%clk 0:02:53]} 6. Qxd4 {[%clk 0:02:58]}  Nf6 {[%clk 0:02:52]} 7. c4 {[%clk 0:02:05]}  Bg7 {[%clk 0:02:45]} 8. Nc3 {[%clk 0:02:06]}  O-O {[%clk 0:02:41]} 9. Qd1 {[%clk 0:02:05]}  a6 {[%clk 0:02:41]} 10. Ba4 {[%clk 0:02:06]}  Nc5 {[%clk 0:02:37]} 11. Bc2 {[%clk 0:02:06]}  Be6 {[%clk 0:02:28]} 12. Nd4 {[%clk 0:02:05]}  Qc8 {[%clk 0:02:16]} 13. b3 {[%clk 0:01:58]}  Nfd7 {[%clk 0:01:39]} 14. Be3 {[%clk 0:01:56]}  Rb8 {[%clk 0:01:33]} 15. Rc1 {[%clk 0:01:54]}  Ne5 {[%clk 0:01:18]} 16. f3 {[%clk 0:01:52]}  Nc6 {[%clk 0:01:18]} 17. Nd5 {[%clk 0:01:49]}  Nxd4 {[%clk 0:01:09]} 18. Nxe7+ {[%clk 0:01:47]} 1-0


[Site "https://www.chess.com"]

[Event "Titled Tuesday Blitz June 20 Early 2023"]
[White "Topalov, Aleksandar"]
[Black "Torres Dominguez, David"]
[WhiteFideId "925659"]
[BlackFideId "2220857"]
[WhiteElo "2151"]
[BlackElo "1999"]
[Result "1-0"]
[Round "5"]
[TimeControl "180+2"]
[Date "2023.06.20"]
[WhiteClock "0:00:03"]
[BlackClock "0:00:00"]
[Board "194"]

1. b3 {[%clk 0:01:52]}  Nf6 {[%clk 0:02:57]} 2. Bb2 {[%clk 0:01:52]}  g6 {[%clk 0:02:58]} 3. Bxf6 {[%clk 0:01:51]}  exf6 {[%clk 0:02:58]} 4. c4 {[%clk 0:01:49]}  Bg7 {[%clk 0:02:50]} 5. Nc3 {[%clk 0:01:49]}  O-O {[%clk 0:02:49]} 6. e3 {[%clk 0:01:50]}  Nc6 {[%clk 0:02:36]} 7. d4 {[%clk 0:01:49]}  Ne7 {[%clk 0:02:35]} 8. Nge2 {[%clk 0:01:47]}  d5 {[%clk 0:02:32]} 9. g3 {[%clk 0:01:47]}  c6 {[%clk 0:02:31]} 10. Bg2 {[%clk 0:01:45]}  Be6 {[%clk 0:02:07]} 11. Qd3 {[%clk 0:01:21]}  Bf5 {[%clk 0:02:03]} 12. Qd2 {[%clk 0:01:20]}  Qd7 {[%clk 0:01:58]} 13. cxd5 {[%clk 0:01:19]}  Nxd5 {[%clk 0:01:57]} 14. Nxd5 {[%clk 0:01:19]}  cxd5 {[%clk 0:01:57]} 15. Nc3 {[%clk 0:01:19]}  Be6 {[%clk 0:01:54]} 16. O-O {[%clk 0:01:17]}  Rac8 {[%clk 0:01:47]} 17. Rac1 {[%clk 0:01:17]}  Rfd8 {[%clk 0:01:23]} 18. Na4 {[%clk 0:01:12]}  b6 {[%clk 0:01:22]} 19. Nc3 {[%clk 0:00:53]}  Bh3 {[%clk 0:01:20]} 20. Bxh3 {[%clk 0:00:49]}  Qxh3 {[%clk 0:01:20]} 21. Qe2 {[%clk 0:00:42]}  Qd7 {[%clk 0:01:05]} 22. Qb5 {[%clk 0:00:30]}  Qxb5 {[%clk 0:00:58]} 23. Nxb5 {[%clk 0:00:30]}  a6 {[%clk 0:00:58]} 24. Na7 {[%clk 0:00:24]}  Rxc1 {[%clk 0:00:52]} 25. Rxc1 {[%clk 0:00:24]}  Rd7 {[%clk 0:00:51]} 26. Nc8 {[%clk 0:00:20]}  b5 {[%clk 0:00:45]} 27. Rc6 {[%clk 0:00:17]}  Bf8 {[%clk 0:00:38]} 28. Nb6 {[%clk 0:00:15]}  Rd8 {[%clk 0:00:31]} 29. Kg2 {[%clk 0:00:12]}  Kg7 {[%clk 0:00:30]} 30. Rc7 {[%clk 0:00:10]}  Rd6 {[%clk 0:00:23]} 31. Rb7 {[%clk 0:00:06]}  Rc6 {[%clk 0:00:20]} 32. Nxd5 {[%clk 0:00:06]}  Rc2 {[%clk 0:00:20]} 33. a4 {[%clk 0:00:06]}  bxa4 {[%clk 0:00:15]} 34. bxa4 {[%clk 0:00:06]}  Rc4 {[%clk 0:00:15]} 35. a5 {[%clk 0:00:03]}  Ra4 {[%clk 0:00:14]} 36. Nc7 {[%clk 0:00:03]}  Rxa5 {[%clk 0:00:13]} 37. Ra7 {[%clk 0:00:04]}  Bd6 {[%clk 0:00:12]} 38. Nxa6 {[%clk 0:00:03]}  Bb8 {[%clk 0:00:09]} 39. Ra8 {[%clk 0:00:03]}  Bd6 {[%clk 0:00:10]} 40. f4 {[%clk 0:00:01]}  f5 {[%clk 0:00:09]} 41. Kf3 {[%clk 0:00:01]}  Ra3 {[%clk 0:00:08]} 42. h4 {[%clk 0:00:02]}  h5 {[%clk 0:00:08]} 43. Nc7 {[%clk 0:00:02]}  Rxa8 {[%clk 0:00:05]} 44. Nxa8 {[%clk 0:00:03]}  Kf6 {[%clk 0:00:04]} 45. Nb6 {[%clk 0:00:03]}  Ba3 {[%clk 0:00:00]} 46. Nc4 {[%clk 0:00:03]} 1-0


[Site "https://www.chess.com"]

[Event "Titled Tuesday Blitz June 20 Early 2023"]
[White "Sanchez, Robert"]
[Black "Dwilewicz, Katarzyna"]
[WhiteFideId "2034360"]
[BlackFideId "1148486"]
[WhiteElo "2001"]
[BlackElo "2098"]
[Result "1-0"]
[Round "5"]
[TimeControl "180+2"]
[Date "2023.06.20"]
[WhiteClock "0:00:05"]
[BlackClock "0:00:05"]
[Board "196"]

1. e4 {[%clk 0:03:00]}  c5 {[%clk 0:02:57]} 2. Nf3 {[%clk 0:03:01]}  d6 {[%clk 0:02:57]} 3. d4 {[%clk 0:03:01]}  cxd4 {[%clk 0:02:58]} 4. Nxd4 {[%clk 0:03:02]}  Nf6 {[%clk 0:02:58]} 5. Nc3 {[%clk 0:03:03]}  a6 {[%clk 0:02:58]} 6. Be3 {[%clk 0:03:02]}  e6 {[%clk 0:02:58]} 7. f3 {[%clk 0:03:01]}  Be7 {[%clk 0:02:58]} 8. Qd2 {[%clk 0:03:02]}  b5 {[%clk 0:02:58]} 9. O-O-O {[%clk 0:03:02]}  Bb7 {[%clk 0:02:58]} 10. g4 {[%clk 0:03:02]}  Nc6 {[%clk 0:02:57]} 11. Nxc6 {[%clk 0:03:00]}  Bxc6 {[%clk 0:02:56]} 12. h4 {[%clk 0:03:00]}  Qc7 {[%clk 0:02:35]} 13. Kb1 {[%clk 0:02:56]}  b4 {[%clk 0:02:32]} 14. Ne2 {[%clk 0:02:55]}  d5 {[%clk 0:02:32]} 15. e5 {[%clk 0:02:49]}  Nd7 {[%clk 0:02:27]} 16. Nd4 {[%clk 0:02:43]}  Nxe5 {[%clk 0:02:24]} 17. Bf4 {[%clk 0:02:44]}  Bd6 {[%clk 0:02:19]} 18. Bxe5 {[%clk 0:02:29]}  Bxe5 {[%clk 0:02:19]} 19. g5 {[%clk 0:02:17]}  a5 {[%clk 0:02:03]} 20. h5 {[%clk 0:02:06]}  Bf4 {[%clk 0:01:29]} 21. Qg2 {[%clk 0:02:01]}  a4 {[%clk 0:01:25]} 22. g6 {[%clk 0:01:59]}  hxg6 {[%clk 0:01:25]} 23. hxg6 {[%clk 0:01:59]}  Rxh1 {[%clk 0:01:24]} 24. Qxh1 {[%clk 0:01:58]}  Bh6 {[%clk 0:00:55]} 25. gxf7+ {[%clk 0:01:53]}  Kxf7 {[%clk 0:00:56]} 26. Qh5+ {[%clk 0:01:44]}  Ke7 {[%clk 0:00:46]} 27. Re1 {[%clk 0:01:33]}  Bd7 {[%clk 0:00:35]} 28. Nf5+ {[%clk 0:01:22]}  Kd8 {[%clk 0:00:35]} 29. Nxh6 {[%clk 0:01:20]}  gxh6 {[%clk 0:00:35]} 30. Qxh6 {[%clk 0:01:17]}  Kc8 {[%clk 0:00:33]} 31. Qf8+ {[%clk 0:01:06]}  Kb7 {[%clk 0:00:25]} 32. Qxb4+ {[%clk 0:01:06]}  Qb6 {[%clk 0:00:25]} 33. Qe7 {[%clk 0:01:01]}  Qc6 {[%clk 0:00:17]} 34. a3 {[%clk 0:00:55]}  Rc8 {[%clk 0:00:18]} 35. Bd3 {[%clk 0:00:54]}  Kb8 {[%clk 0:00:14]} 36. f4 {[%clk 0:00:51]}  Rc7 {[%clk 0:00:15]} 37. Qf8+ {[%clk 0:00:38]}  Ka7 {[%clk 0:00:12]} 38. Rg1 {[%clk 0:00:34]}  Rb7 {[%clk 0:00:12]} 39. Rg8 {[%clk 0:00:30]}  Kb6 {[%clk 0:00:10]} 40. Qb4+ {[%clk 0:00:27]}  Kc7 {[%clk 0:00:08]} 41. Qa5+ {[%clk 0:00:27]}  Qb6 {[%clk 0:00:07]} 42. Qxb6+ {[%clk 0:00:26]}  Kxb6 {[%clk 0:00:06]} 43. b4 {[%clk 0:00:20]}  axb3 {[%clk 0:00:05]} 44. cxb3 {[%clk 0:00:20]}  Kc5 {[%clk 0:00:06]} 45. Kb2 {[%clk 0:00:18]}  Kd4 {[%clk 0:00:05]} 46. Bc2 {[%clk 0:00:17]}  Bb5 {[%clk 0:00:04]} 47. Rg6 {[%clk 0:00:13]}  Bd7 {[%clk 0:00:02]} 48. Rg7 {[%clk 0:00:12]}  Rc7 {[%clk 0:00:02]} 49. a4 {[%clk 0:00:11]}  Rb7 {[%clk 0:00:02]} 50. a5 {[%clk 0:00:09]}  Kc5 {[%clk 0:00:01]} 51. Ka3 {[%clk 0:00:08]}  Ra7 {[%clk 0:00:02]} 52. b4+ {[%clk 0:00:08]}  Kd6 {[%clk 0:00:02]} 53. Ba4 {[%clk 0:00:07]}  d4 {[%clk 0:00:02]} 54. Bxd7 {[%clk 0:00:06]}  d3 {[%clk 0:00:02]} 55. Kb2 {[%clk 0:00:03]}  Rc7 {[%clk 0:00:02]} 56. Rg1 {[%clk 0:00:01]}  Rxd7 {[%clk 0:00:02]} 57. Rd1 {[%clk 0:00:02]}  Kc6 {[%clk 0:00:02]} 58. Kc3 {[%clk 0:00:02]}  Kb5 {[%clk 0:00:03]} 59. Rxd3 {[%clk 0:00:03]}  Rc7+ {[%clk 0:00:04]} 60. Kb3 {[%clk 0:00:03]}  Rf7 {[%clk 0:00:03]} 61. Rd4 {[%clk 0:00:03]}  Rg7 {[%clk 0:00:03]} 62. Re4 {[%clk 0:00:03]}  Rg3+ {[%clk 0:00:03]} 63. Kb2 {[%clk 0:00:04]}  Rg6 {[%clk 0:00:03]} 64. Re5+ {[%clk 0:00:04]}  Kxb4 {[%clk 0:00:03]} 65. a6 {[%clk 0:00:04]}  Rg2+ {[%clk 0:00:02]} 66. Kc1 {[%clk 0:00:04]}  Kc3 {[%clk 0:00:02]} 67. Kd1 {[%clk 0:00:05]}  Ra2 {[%clk 0:00:02]} 68. Rxe6 {[%clk 0:00:04]}  Kd3 {[%clk 0:00:02]} 69. Ke1 {[%clk 0:00:04]}  Kc3 {[%clk 0:00:02]} 70. f5 {[%clk 0:00:04]}  Ra5 {[%clk 0:00:02]} 71. f6 {[%clk 0:00:04]}  Rf5 {[%clk 0:00:03]} 72. a7 {[%clk 0:00:04]}  Ra5 {[%clk 0:00:04]} 73. Re7 {[%clk 0:00:04]}  Ra1+ {[%clk 0:00:03]} 74. Kf2 {[%clk 0:00:03]}  Ra2+ {[%clk 0:00:04]} 75. Ke3 {[%clk 0:00:04]}  Kc4 {[%clk 0:00:04]} 76. Kf4 {[%clk 0:00:04]}  Ra1 {[%clk 0:00:05]} 77. f7 {[%clk 0:00:04]}  Rf1+ {[%clk 0:00:05]} 78. Ke5 {[%clk 0:00:04]}  Kc5 {[%clk 0:00:05]} 79. a8=Q {[%clk 0:00:04]}  Re1+ {[%clk 0:00:05]} 80. Kf6 {[%clk 0:00:05]} 1-0


[Site "https://www.chess.com"]